bitfinex-derivatives/quotes_BNBF0:USTF0_20250715
["timestamp","ask_amount","ask_price","bid_price","bid_amount"]
[1752585160321,0.9806863,684.84,684.05,0.96912704]
[1752585161121,0.9806863,684.84,684.06,0.96912704]
[1752585161321,0.9806863,684.83,684.06,0.96912704]
[1752585161719,0.9806863,684.84,684.06,0.96912704]
[1752585161916,0.9806863,684.84,683.92,1.2977469]
[1752585161917,0.9806863,684.86,684.04,0.96912704]
[1752585162120,0.9806863,684.86,684.05,0.96912704]
[1752585163123,0.9806863,684.87,684.05,0.96912704]
[1752585163622,0.9806863,684.87,684.06,0.96912704]
[1752585163819,0.9806863,684.9,684.04,0.96912704]
[1752585164024,0.9806863,684.92,684.03,0.96912704]
[1752585164322,0.9806863,684.91,684.03,0.96912704]
[1752585164623,0.9806863,684.9,684.04,0.96912704]
[1752585165223,0.9806863,684.89,684.05,0.96912704]
[1752585165922,0.9806863,684.9,684.05,0.96912704]
[1752585166322,0.9806863,684.89,684.05,0.96912704]
[1752585166519,0.9806863,684.88,684.1,0.96912704]
[1752585166823,0.9806863,684.92,684.21,0.96912704]
[1752585167523,0.98209811,684.92,684.2,0.97004722]
[1752585167924,0.98209811,684.95,684.19,0.97004722]
[1752585168323,0.98209811,684.95,684.18,0.97004722]
[1752585168524,0.98209811,684.95,684.19,0.97004722]
[1752585169427,0.98209811,684.95,684.18,0.97004722]
[1752585169620,0.98209811,684.95,683.26,3.2443672]
[1752585169621,0.98209811,684.95,684.19,0.97004722]
[1752585169820,0.98209811,684.97,684.21,0.97004722]
[1752585170324,0.98209811,684.97,683.91,1.9466203]
[1752585170325,0.98209811,685.0,684.24,0.97004722]
[1752585171223,0.98209811,685.0,684.23,0.97004722]
[1752585171826,0.98209811,685.01,684.23,0.97004722]
[1752585172327,0.98209811,685.01,684.22,0.97004722]
[1752585173024,0.98209811,685.04,684.25,0.97004722]
[1752585173428,0.98209811,685.12,684.31,0.97004722]
[1752585173628,0.98209811,685.15,684.29,0.97004722]
[1752585174124,0.98209811,685.17,684.31,0.97004722]
[1752585174328,0.98209811,685.18,684.29,0.97004722]
[1752585174729,0.98209811,685.21,684.32,0.97004722]
[1752585175129,0.98209811,685.22,684.32,0.97004722]
[1752585175332,0.98209811,685.23,684.31,0.97004722]
[1752585175730,0.98209811,685.23,684.3,0.97004722]
[1752585176029,0.98209811,685.23,684.31,0.97004722]
[1752585176229,0.98209811,685.19,684.26,0.97004722]
[1752585176430,0.98209811,685.19,684.25,0.97004722]
[1752585177525,0.98209811,685.2,684.24,0.97004722]
[1752585178430,0.98209811,685.2,683.87,1.9466203]
[1752585178431,0.98209811,685.21,684.23,0.97004722]
[1752585178730,0.98209811,685.2,684.24,0.97004722]
[1752585178926,0.98209811,685.22,684.22,0.97004722]
[1752585181131,0.98209811,685.24,684.23,0.97004722]
[1752585182028,0.98209811,685.24,684.24,0.97004722]
[1752585182234,0.98209811,685.24,684.05,1.2977469]
[1752585182235,0.98209811,685.24,684.23,0.97004722]
[1752585182934,0.98209811,685.25,684.22,0.97004722]
[1752585183335,0.98209811,685.3,684.24,0.97004722]
[1752585183535,0.98209811,685.26,684.24,0.97004722]
[1752585184031,0.98209811,685.19,684.18,0.97004722]
[1752585184234,0.25407858,685.41,684.17,0.97004722]
[1752585184235,0.98209811,685.21,684.17,0.97004722]
[1752585185035,0.98209811,685.2,684.15,0.97004722]
[1752585185231,0.98209811,685.19,684.15,0.97004722]
[1752585185432,0.98209811,685.19,684.14,0.97004722]
[1752585186237,0.98209811,685.14,684.18,0.97004722]
[1752585186437,0.98209811,685.06,684.23,0.97004722]
[1752585186738,0.98209811,685.08,684.22,0.97004722]
[1752585187138,0.98209811,685.1,684.2,0.97004722]
[1752585188039,0.98209811,685.11,684.18,0.97004722]
[1752585188237,0.98209811,685.08,684.15,0.97004722]
[1752585188538,0.98209811,685.07,684.12,0.97004722]
[1752585189134,0.98209811,685.05,684.06,0.97004722]
[1752585190639,0.98209811,685.07,684.05,0.97004722]
[1752585191136,0.98209811,685.06,684.05,0.97004722]
[1752585191337,0.98209811,685.02,684.03,0.97004722]
[1752585192236,0.98209811,685.0,684.05,0.97004722]
[1752585192437,0.98209811,685.0,683.23,0.2541593]
[1752585192438,0.98209811,684.99,684.06,0.97004722]
[1752585193441,0.98209811,684.98,684.07,0.97004722]
[1752585193740,0.98209811,684.99,684.06,0.97004722]
[1752585193940,0.98209811,684.99,684.07,0.97004722]
[1752585194340,0.98209811,684.99,684.08,0.97004722]
[1752585194539,0.98209811,684.99,683.92,1.2977469]
[1752585194540,0.98209811,684.96,684.1,0.97004722]
[1752585194944,1.3095362,685.12,683.96,1.2977469]
[1752585195141,0.98033749,684.97,684.11,0.96860376]
[1752585195344,0.98033749,685.01,684.13,0.96860376]
[1752585195542,0.98033749,685.01,684.14,0.96860376]
[1752585195740,0.98033749,685.0,684.14,0.96860376]
[1752585196241,0.98033749,685.0,684.15,0.96860376]
[1752585196842,0.98033749,685.01,684.17,0.96860376]
[1752585197546,0.98033749,685.0,684.18,0.96860376]
[1752585197948,0.98033749,685.01,684.17,0.96860376]
[1752585198349,0.98033749,685.04,684.2,0.96860376]
[1752585198748,0.98033749,685.07,684.23,0.96860376]
[1752585198948,0.98033749,685.06,684.24,0.96860376]
[1752585200253,0.98033749,685.05,684.24,0.96860376]
[1752585200453,0.98033749,685.12,684.19,0.96860376]
[1752585200752,0.98033749,685.13,684.19,0.96860376]
[1752585201256,0.98033749,685.12,684.2,0.96860376]
[1752585201753,0.98033749,685.03,684.11,0.96860376]
[1752585201954,0.98033749,685.06,684.09,0.96860376]
[1752585202350,0.98033749,685.05,684.1,0.96860376]
[1752585202652,0.98033749,685.0,684.1,0.96860376]
[1752585203055,0.98033749,685.0,683.9,1.2977469]
[1752585203056,0.98033749,685.0,684.09,0.96860376]
[1752585203251,0.98033749,685.0,684.1,0.96860376]
[1752585204455,0.98033749,685.0,684.11,0.96860376]
[1752585206157,0.98033749,684.99,684.11,0.96860376]
[1752585206457,0.98033749,685.0,684.11,0.96860376]
[1752585206959,0.98033749,684.99,684.11,0.96860376]
[1752585207254,0.98033749,684.92,684.16,0.96860376]
[1752585209361,0.98033749,684.9,684.17,0.96860376]
[1752585209661,0.98033749,684.88,684.15,0.96860376]
[1752585210060,0.98033749,684.85,684.17,0.96860376]
[1752585210962,0.98033749,685.0,684.07,0.96860376]
[1752585212063,0.98033749,685.02,684.06,0.96860376]
[1752585212758,0.98033749,685.04,684.05,0.96860376]
[1752585213564,0.98033749,684.98,684.0,0.96860376]
[1752585213764,0.98033749,684.86,684.14,0.96860376]
[1752585213966,0.98033749,684.77,684.05,0.96860376]
[1752585214261,0.98033749,684.76,684.04,0.96860376]
[1752585214665,0.98033749,684.68,684.0,0.96860376]
[1752585214962,0.98033749,684.67,683.98,0.96860376]
[1752585215161,0.98033749,684.67,683.97,0.96860376]
[1752585215861,0.98033749,684.8,683.88,0.96860376]
[1752585216164,0.98033749,684.79,683.86,0.96860376]
[1752585216360,0.98033749,684.71,683.77,0.96860376]
[1752585217160,0.98033749,684.71,683.75,0.96860376]
[1752585217865,0.98033749,684.72,683.74,0.96860376]
[1752585218060,1.3095362,684.93,683.74,0.96860376]
[1752585218061,0.98033749,684.71,683.74,0.96860376]
[1752585218364,0.98033749,684.72,683.72,0.96860376]
[1752585219163,0.98033749,684.73,683.71,0.96860376]
[1752585219662,0.98033749,684.75,683.73,0.96860376]
[1752585220367,0.98033749,684.76,683.71,0.96860376]
[1752585220967,0.98033749,684.76,683.72,0.96860376]
[1752585221167,0.98033749,684.77,683.71,0.96860376]
[1752585222268,0.98033749,684.77,683.7,0.96860376]
[1752585222463,0.25407858,685.41,683.7,0.96860376]
[1752585222464,0.98033749,684.76,683.7,0.96860376]
[1752585222668,0.98033749,684.74,683.69,0.96860376]
[1752585222968,0.98033749,684.75,683.69,0.96860376]
[1752585223266,0.98033749,684.75,683.68,0.96860376]
[1752585223467,0.98033749,684.77,683.7,0.96860376]
[1752585224263,0.98033749,684.74,683.72,0.96860376]
[1752585224667,1.3095362,684.91,683.72,0.96860376]
[1752585224668,0.98033749,684.73,683.72,0.96860376]
[1752585224968,0.98033749,684.73,683.71,0.96860376]
[1752585225164,0.98033749,684.74,683.71,0.96860376]
[1752585225468,0.98033749,684.74,683.7,0.96860376]
[1752585225669,0.98033749,684.7,683.73,0.96860376]
[1752585225967,0.98033749,684.71,683.73,0.96860376]
[1752585226163,0.98033749,684.71,683.72,0.96860376]
[1752585227168,0.98033749,684.71,683.71,0.96860376]
[1752585227869,0.98033749,684.69,683.73,0.96860376]
[1752585228365,0.98033749,684.68,683.73,0.96860376]
[1752585228763,0.98033749,684.66,683.71,0.96860376]
[1752585229365,0.98033749,684.67,683.71,0.96860376]
[1752585229564,0.98033749,684.67,683.7,0.96860376]
[1752585229768,0.98033749,684.67,683.71,0.96860376]
[1752585230167,0.98033749,684.67,683.7,0.96860376]
[1752585232968,0.98033749,684.7,683.68,0.96860376]
[1752585233269,0.98033749,684.71,683.67,0.96860376]
[1752585233770,1.3095362,684.85,683.68,0.96860376]
[1752585233771,0.98033749,684.7,683.68,0.96860376]
[1752585235168,1.3095362,684.84,683.23,0.2541593]
[1752585235169,0.98033749,684.71,683.67,0.96860376]
[1752585235371,0.98033749,684.7,683.68,0.96860376]
[1752585235569,0.98033749,684.71,683.68,0.96860376]
[1752585236373,0.98033749,684.7,683.68,0.96860376]
[1752585236574,0.98033749,684.71,683.68,0.96860376]
[1752585236872,0.98033749,684.7,683.68,0.96860376]
[1752585237173,0.98033749,684.71,683.68,0.96860376]
[1752585237372,0.98033749,684.7,683.68,0.96860376]
[1752585237973,0.98033749,684.7,683.69,0.96860376]
[1752585238177,0.98033749,684.7,683.68,0.96860376]
[1752585238374,0.98033749,684.7,683.69,0.96860376]
[1752585239774,0.98033749,684.66,683.71,0.96860376]
[1752585240875,0.98033749,684.72,683.77,0.96860376]
[1752585241379,0.98033749,684.75,683.79,0.96860376]
[1752585241579,0.25407858,685.41,683.79,0.96860376]
[1752585241580,0.98033749,684.76,683.79,0.96860376]
[1752585241980,0.98033749,684.75,683.79,0.96860376]
[1752585242681,0.98033749,684.76,683.79,0.96860376]
[1752585242880,0.98033749,684.76,683.75,0.96860376]
[1752585243178,0.98033749,684.75,683.7,0.96860376]
[1752585243380,0.98033749,684.73,683.68,0.96860376]
[1752585243578,0.98033749,684.68,683.63,0.96860376]
[1752585244579,0.98033749,684.67,683.63,0.96860376]
[1752585245384,0.98033749,684.68,683.63,0.96860376]
[1752585245582,0.98033749,684.68,683.64,0.96860376]
[1752585246687,0.98033749,684.69,683.66,0.96860376]
[1752585246986,0.98033749,684.7,683.66,0.96860376]
[1752585247187,1.3095362,684.87,683.66,0.96860376]
[1752585247188,0.98033749,684.69,683.66,0.96860376]
[1752585247388,0.98033749,684.69,683.67,0.96860376]
[1752585247790,0.98033749,684.68,683.67,0.96860376]
[1752585248385,0.98033749,684.68,683.51,1.2977469]
[1752585248386,0.98033749,684.64,683.7,0.96860376]
[1752585248588,0.98033749,684.66,683.72,0.96860376]
[1752585249086,0.98033749,684.66,683.73,0.96860376]
[1752585249286,0.98033749,684.67,683.72,0.96860376]
[1752585249790,0.98033749,684.68,683.71,0.96860376]
[1752585250190,0.98033749,684.68,683.72,0.96860376]
[1752585250489,0.98033749,684.7,683.74,0.96860376]
[1752585252191,0.98033749,684.7,683.75,0.96860376]
[1752585252489,0.98033749,684.83,683.66,0.96860376]
[1752585252693,0.98033749,684.79,683.62,0.96860376]
[1752585252889,0.98033749,684.8,683.62,0.96860376]
[1752585254092,0.98033749,684.8,683.63,0.96860376]
[1752585254291,1.3095362,685.03,683.4,1.2977469]
[1752585254488,0.97962247,684.8,683.63,0.96880732]
[1752585255389,0.97962247,684.8,683.62,0.96880732]
[1752585256293,0.97962247,684.8,683.63,0.96880732]
[1752585256593,0.97962247,684.71,683.71,0.96880732]
[1752585256793,0.97962247,684.73,683.73,0.96880732]
[1752585257092,0.97962247,684.8,683.86,0.96880732]
[1752585257289,0.97962247,684.8,683.87,0.96880732]
[1752585257893,0.97962247,684.79,683.88,0.96880732]
[1752585258092,1.3061632,684.93,683.88,0.96880732]
[1752585258093,0.97962247,684.78,683.88,0.96880732]
[1752585258392,0.97962247,684.78,683.89,0.96880732]
[1752585259194,0.97962247,684.77,683.9,0.96880732]
[1752585260094,0.97962247,684.77,683.91,0.96880732]
[1752585260291,0.97962247,684.76,683.92,0.96880732]
[1752585260695,0.97962247,684.77,683.93,0.96880732]
[1752585260895,0.97962247,684.78,683.94,0.96880732]
[1752585261095,0.97962247,684.77,683.96,0.96880732]
[1752585262798,0.97962247,684.77,683.97,0.96880732]
[1752585263096,0.97962247,684.79,683.95,0.96880732]
[1752585263300,0.97962247,684.8,683.95,0.96880732]
[1752585263795,0.97962247,684.79,683.94,0.96880732]
[1752585264000,0.97962247,684.78,683.93,0.96880732]
[1752585264200,0.97962247,684.78,683.94,0.96880732]
[1752585264400,0.97962247,684.78,683.93,0.96880732]
[1752585265296,0.97962247,684.77,683.94,0.96880732]
[1752585265698,0.97962247,684.8,683.96,0.96880732]
[1752585266202,0.97962247,684.79,683.97,0.96880732]
[1752585266703,0.97962247,684.81,683.96,0.96880732]
[1752585266903,0.97962247,684.83,683.95,0.96880732]
[1752585267101,0.97962247,684.82,683.95,0.96880732]
[1752585267499,0.97962247,684.81,683.96,0.96880732]
[1752585267799,0.97962247,684.8,683.95,0.96880732]
[1752585268102,0.97962247,684.78,683.96,0.96880732]
[1752585268402,0.97962247,684.78,683.97,0.96880732]
[1752585269200,0.97962247,684.77,683.98,0.96880732]
[1752585270305,0.97962247,684.77,683.99,0.96880732]
[1752585271209,0.97962247,684.76,684.0,0.96880732]
[1752585271909,0.97962247,684.77,683.99,0.96880732]
[1752585272307,0.97962247,684.75,683.99,0.96880732]
[1752585272910,0.97962247,684.76,683.99,0.96880732]
[1752585273316,0.97962247,684.75,684.0,0.96880732]
[1752585273612,0.97962247,684.73,684.01,0.96880732]
[1752585274315,1.3061632,684.9,684.01,0.96880732]
[1752585274316,0.97962247,684.74,684.01,0.96880732]
[1752585275115,0.97962247,684.74,684.0,0.96880732]
[1752585275717,0.97962247,684.72,684.02,0.96880732]
[1752585276114,0.97962247,684.71,684.02,0.96880732]
[1752585276820,0.97962247,684.69,684.03,0.96880732]
[1752585277221,0.97962247,684.69,684.04,0.96880732]
[1752585277519,0.97962247,684.7,684.04,0.96880732]
[1752585277716,0.97962247,684.7,684.03,0.96880732]
[1752585278819,1.3061632,684.85,683.88,1.2917431]
[1752585279122,0.98320786,684.7,684.03,0.97193155]
[1752585279421,0.98320786,684.69,684.04,0.97193155]
[1752585280622,0.98320786,684.68,684.04,0.97193155]
[1752585280825,0.98320786,684.72,684.09,0.97193155]
[1752585281225,0.98320786,684.73,684.09,0.97193155]
[1752585281824,0.98320786,684.75,684.11,0.97193155]
[1752585282123,0.98320786,684.75,684.1,0.97193155]
[1752585282924,0.98320786,684.78,684.09,0.97193155]
[1752585283336,0.98320786,684.79,684.09,0.97193155]
[1752585284038,0.98320786,684.78,684.08,0.97193155]
[1752585284725,0.98320786,684.79,684.09,0.97193155]
[1752585285931,0.98320786,684.79,684.08,0.97193155]
[1752585287234,0.98320786,684.83,684.05,0.97193155]
[1752585289034,0.98320786,684.81,684.06,0.97193155]
[1752585290134,0.98320786,684.82,684.06,0.97193155]
[1752585290634,0.98320786,684.81,684.06,0.97193155]
[1752585290933,0.98320786,684.83,684.05,0.97193155]
[1752585292932,0.98320786,684.84,684.04,0.97193155]
[1752585295733,0.98320786,684.81,684.06,0.97193155]
[1752585295935,0.98320786,684.81,684.07,0.97193155]
[1752585296334,0.98320786,684.81,684.06,0.97193155]
[1752585296638,0.98320786,684.81,684.07,0.97193155]
[1752585299939,0.98320786,684.8,684.07,0.97193155]
[1752585300644,0.98320786,684.79,684.07,0.97193155]
[1752585300937,0.98320786,684.79,684.08,0.97193155]
[1752585301437,0.98320786,684.78,684.09,0.97193155]
[1752585302042,0.98320786,684.78,684.1,0.97193155]
[1752585302944,0.98320786,684.8,684.08,0.97193155]
[1752585303144,0.98320786,684.8,684.09,0.97193155]
[1752585304039,0.98320786,684.85,684.12,0.97193155]
[1752585304941,0.98320786,684.86,684.12,0.97193155]
[1752585305240,0.98320786,684.85,684.12,0.97193155]
[1752585306447,0.98320786,684.84,684.1,0.97193155]
[1752585306644,0.98320786,684.84,683.23,0.2541593]
[1752585306645,0.98320786,684.85,684.09,0.97193155]
[1752585306947,0.98320786,684.82,684.09,0.97193155]
[1752585307347,0.98320786,684.81,684.1,0.97193155]
[1752585307749,0.98320786,684.8,684.09,0.97193155]
[1752585308248,0.98320786,684.8,683.94,1.2917431]
[1752585308249,0.98320786,684.79,684.1,0.97193155]
[1752585308846,0.98320786,684.78,684.11,0.97193155]
[1752585309247,0.98320786,684.77,684.11,0.97193155]
[1752585310248,0.98320786,684.76,684.11,0.97193155]
[1752585310752,0.98320786,684.71,684.06,0.97193155]
[1752585311551,0.98320786,684.7,684.06,0.97193155]
[1752585312047,0.98320786,684.71,684.06,0.97193155]
[1752585312247,0.98320786,684.7,684.07,0.97193155]
[1752585312552,0.98320786,684.71,684.07,0.97193155]
[1752585312752,1.9643044,685.0,684.07,0.97193155]
[1752585312753,0.98320786,684.7,684.07,0.97193155]
[1752585313049,0.98320786,684.7,684.06,0.97193155]
[1752585313253,0.98320786,684.7,683.23,0.2541593]
[1752585313254,0.98320786,684.7,684.07,0.97193155]
[1752585314953,0.98320786,684.69,684.07,0.97193155]
[1752585315154,0.98320786,684.68,684.08,0.97193155]
[1752585315355,0.98320786,684.68,684.09,0.97193155]
[1752585315650,0.98320786,684.68,684.08,0.97193155]
[1752585316056,0.98320786,684.67,684.07,0.97193155]
[1752585316256,0.98320786,684.66,684.07,0.97193155]
[1752585316457,0.98320786,684.65,684.08,0.97193155]
[1752585317458,0.98320786,684.64,684.08,0.97193155]
[1752585317757,0.98320786,684.65,684.07,0.97193155]
[1752585317957,0.98320786,684.66,684.07,0.97193155]
[1752585319153,0.98320786,684.62,684.02,0.97193155]
[1752585319355,0.98320786,684.61,684.03,0.97193155]
[1752585320655,0.98320786,684.59,684.04,0.97193155]
[1752585321661,0.98320786,684.61,684.02,0.97193155]
[1752585321861,0.98320786,684.62,684.02,0.97193155]
[1752585322959,0.98320786,684.64,684.0,0.97193155]
[1752585323663,0.98320786,684.65,684.0,0.97193155]
[1752585325363,0.98320786,684.65,683.99,0.97193155]
[1752585326062,0.98320786,684.64,684.0,0.97193155]
[1752585326264,0.98320786,684.61,683.97,0.97193155]
[1752585326462,0.98320786,684.65,683.94,0.97193155]
[1752585327160,0.98320786,684.65,683.95,0.97193155]
[1752585327359,0.98320786,684.65,683.94,0.97193155]
[1752585328160,0.98320786,684.66,683.94,0.97193155]
[1752585328768,0.98320786,684.65,683.95,0.97193155]
[1752585328964,0.98320786,684.65,683.94,0.97193155]
[1752585329463,0.98320786,684.66,683.94,0.97193155]
[1752585330167,0.98320786,684.64,683.95,0.97193155]
[1752585330364,0.98320786,684.65,683.95,0.97193155]
[1752585330766,0.98320786,684.64,683.95,0.97193155]
[1752585331168,0.98320786,684.65,683.94,0.97193155]
[1752585331370,0.98320786,684.65,683.95,0.97193155]
[1752585331571,0.98320786,684.62,683.97,0.97193155]
[1752585331766,0.98320786,684.61,683.98,0.97193155]
[1752585332168,0.98320786,684.61,683.97,0.97193155]
[1752585333175,0.98320786,684.61,683.23,0.2541593]
[1752585333176,0.98320786,684.63,683.99,0.97193155]
[1752585333572,0.98320786,684.64,683.98,0.97193155]
[1752585334078,0.98320786,684.62,683.99,0.97193155]
[1752585334274,0.98320786,684.63,683.99,0.97193155]
[1752585334773,0.98320786,684.63,684.0,0.97193155]
[1752585335175,0.98320786,684.63,683.99,0.97193155]
[1752585335477,0.98320786,684.64,683.99,0.97193155]
[1752585336580,0.98320786,684.65,683.99,0.97193155]
[1752585337779,0.98320786,684.64,683.99,0.97193155]
[1752585337982,0.98320786,684.66,683.99,0.97193155]
[1752585338477,0.98320786,684.65,683.99,0.97193155]
[1752585339279,0.98320786,684.66,683.98,0.97193155]
[1752585340476,0.98320786,684.66,683.97,0.97193155]
[1752585340876,0.98320786,684.66,683.98,0.97193155]
[1752585341177,0.98320786,684.66,683.97,0.97193155]
[1752585341982,0.98320786,684.66,683.98,0.97193155]
[1752585342278,0.98320786,684.66,683.97,0.97193155]
[1752585345280,0.98320786,684.66,683.98,0.97193155]
[1752585348482,0.98365905,684.66,683.98,0.97586027]
[1752585349087,0.98365905,684.65,683.99,0.97586027]
[1752585351484,0.98365905,684.66,683.99,0.97586027]
[1752585351688,0.98365905,684.66,684.0,0.97586027]
[1752585352087,0.98365905,684.79,684.13,0.97586027]
[1752585352484,0.98365905,684.8,684.14,0.97586027]
[1752585352786,0.98365905,684.84,684.21,0.97586027]
[1752585352983,0.98365905,684.87,684.2,0.97586027]
[1752585353688,0.98365905,684.94,684.27,0.97586027]
[1752585354384,0.98365905,684.96,684.26,0.97586027]
[1752585354588,0.98365905,684.95,684.26,0.97586027]
[1752585355387,0.98365905,684.89,684.19,0.97586027]
[1752585355692,0.98365905,684.89,684.2,0.97586027]
[1752585356187,0.98365905,684.9,684.19,0.97586027]
[1752585358392,0.98365905,684.91,684.18,0.97586027]
[1752585358594,0.98365905,684.9,684.19,0.97586027]
[1752585360193,1.3061632,685.05,683.29,3.2443672]
[1752585360194,0.98365905,684.88,684.21,0.97586027]
[1752585360391,0.25407858,685.41,684.28,0.97586027]
[1752585360392,0.98365905,684.93,684.28,0.97586027]
[1752585361196,0.98365905,684.99,684.32,0.97586027]
[1752585361493,0.98365905,685.0,684.3,0.97586027]
[1752585361696,0.98365905,685.01,684.3,0.97586027]
[1752585362090,0.98365905,685.02,684.3,0.97586027]
[1752585362594,0.98365905,685.03,684.29,0.97586027]
[1752585363298,0.98365905,685.02,684.29,0.97586027]
[1752585363597,0.98365905,685.03,684.28,0.97586027]
[1752585364393,0.98365905,685.03,684.27,0.97586027]
[1752585364696,0.98365905,685.11,684.22,0.97586027]
[1752585364897,0.98365905,685.1,684.22,0.97586027]
[1752585365098,0.98365905,685.11,684.22,0.97586027]
[1752585365295,0.98365905,685.1,684.22,0.97586027]
[1752585365495,1.3061632,685.29,683.23,0.2541593]
[1752585365496,0.98365905,685.11,684.21,0.97586027]
[1752585365697,0.98365905,685.1,684.21,0.97586027]
[1752585365892,0.98365905,685.12,684.2,0.97586027]
[1752585366394,1.3061632,685.32,683.23,0.2541593]
[1752585366395,0.98365905,685.06,684.19,0.97586027]
[1752585366594,0.98365905,685.06,684.12,0.97586027]
[1752585366901,0.98365905,684.96,684.03,0.97586027]
[1752585367301,0.98365905,684.96,684.02,0.97586027]
[1752585367800,0.98365905,684.97,684.01,0.97586027]
[1752585368000,0.98365905,684.94,684.04,0.97586027]
[1752585369203,0.98365905,684.94,684.03,0.97586027]
[1752585373202,0.98365905,684.92,684.04,0.97586027]
[1752585374807,0.98365905,684.91,684.05,0.97586027]
[1752585375008,0.98365905,684.86,684.08,0.97586027]
[1752585377804,0.98365905,684.88,684.07,0.97586027]
[1752585378009,0.98365905,684.89,684.06,0.97586027]
[1752585378306,0.98365905,684.92,684.04,0.97586027]
[1752585378705,0.98365905,684.92,684.05,0.97586027]
[1752585379106,0.98365905,684.94,684.08,0.97586027]
[1752585379306,0.98365905,684.94,683.75,1.9466203]
[1752585379307,0.98365905,685.0,684.13,0.97586027]
[1752585379706,0.98365905,684.99,684.14,0.97586027]
[1752585381214,0.98365905,684.99,684.13,0.97586027]
[1752585381615,0.98365905,684.98,684.14,0.97586027]
[1752585382314,0.98365905,684.97,684.15,0.97586027]
[1752585383516,0.98365905,684.98,684.15,0.97586027]
[1752585385414,0.98365905,684.99,684.14,0.97586027]
[1752585385819,0.98365905,685.02,684.17,0.97586027]
[1752585386919,0.98365905,685.05,684.15,0.97586027]
[1752585387421,0.98365905,685.04,684.15,0.97586027]
[1752585388120,0.98365905,685.05,684.15,0.97586027]
[1752585388419,0.98365905,685.04,684.15,0.97586027]
[1752585390016,0.98365905,685.01,684.12,0.97586027]
[1752585392417,0.98365905,685.01,684.13,0.97586027]
[1752585392819,0.98365905,685.0,684.13,0.97586027]
[1752585393018,0.98365905,685.01,684.12,0.97586027]
[1752585393222,0.98365905,685.02,684.12,0.97586027]
[1752585393419,0.98365905,685.01,684.12,0.97586027]
[1752585393923,0.98365905,685.03,684.11,0.97586027]
[1752585394224,0.98365905,685.03,684.12,0.97586027]
[1752585394422,0.98365905,685.02,684.12,0.97586027]
[1752585395220,0.98365905,685.03,684.11,0.97586027]
[1752585395420,0.98365905,685.02,684.12,0.97586027]
[1752585395823,0.98365905,685.0,684.13,0.97586027]
[1752585396020,0.98365905,684.92,684.05,0.97586027]
[1752585396524,0.98365905,684.91,684.06,0.97586027]
[1752585396919,0.98365905,684.89,684.07,0.97586027]
[1752585397824,0.98365905,684.89,684.08,0.97586027]
[1752585398123,0.98365905,684.86,684.1,0.97586027]
[1752585399521,0.98365905,684.86,684.11,0.97586027]
[1752585400725,0.25416116,685.07,684.06,0.97586027]
[1752585400726,0.98365905,684.94,684.06,0.97586027]
[1752585400925,0.98365905,684.92,684.04,0.97586027]
[1752585401421,0.98365905,684.92,684.05,0.97586027]
[1752585401625,0.98365905,684.92,684.04,0.97586027]
[1752585401822,0.98365905,684.9,684.02,0.97586027]
[1752585402924,0.98365905,684.83,684.06,0.97586027]
[1752585403324,0.98365905,684.83,684.07,0.97586027]
[1752585404028,0.25416116,685.07,683.64,0.25416116]
[1752585404029,0.98365905,684.79,684.02,0.97586027]
[1752585404325,0.98365905,684.78,684.03,0.97586027]
[1752585404725,0.98365905,684.79,684.03,0.97586027]
[1752585404923,0.98365905,684.8,684.02,0.97586027]
[1752585405725,0.98365905,684.79,684.02,0.97586027]
[1752585406228,0.98365905,684.79,684.03,0.97586027]
[1752585409333,0.98365905,684.78,684.04,0.97586027]
[1752585410231,0.98365905,684.77,684.05,0.97586027]
[1752585410434,0.98365905,684.76,684.06,0.97586027]
[1752585411331,0.98365905,684.75,684.06,0.97586027]
[1752585412531,0.98365905,684.73,684.04,0.97586027]
[1752585412936,0.98365905,684.71,684.05,0.97586027]
[1752585413434,0.98365905,684.72,684.05,0.97586027]
[1752585415441,0.98365905,684.72,684.04,0.97586027]
[1752585415638,0.98365905,684.7,684.03,0.97586027]
[1752585416339,0.98365905,684.71,684.03,0.97586027]
[1752585417139,0.98365905,684.71,684.02,0.97586027]
[1752585417442,0.98365905,684.72,684.01,0.97586027]
[1752585418039,0.98365905,684.74,684.0,0.97586027]
[1752585418741,0.98365905,684.68,683.94,0.97586027]
[1752585419344,0.98365905,684.68,683.93,0.97586027]
[1752585419845,0.98365905,684.67,683.91,0.97586027]
[1752585420142,0.98365905,684.66,683.91,0.97586027]
[1752585421444,0.98365905,684.67,683.91,0.97586027]
[1752585421946,0.98365905,684.68,683.9,0.97586027]
[1752585422748,0.98365905,684.66,683.88,0.97586027]
[1752585422943,0.98365905,684.66,683.72,1.2917431]
[1752585422944,0.98365905,684.65,683.89,0.97586027]
[1752585423247,0.98365905,684.66,683.89,0.97586027]
[1752585423444,0.98365905,684.66,682.95,3.2443672]
[1752585423445,0.98365905,684.65,683.9,0.97586027]
[1752585423647,0.98365905,684.55,683.8,0.97586027]
[1752585423847,0.98365905,684.54,683.8,0.97586027]
[1752585424348,0.98365905,684.52,683.76,0.97586027]
[1752585424848,0.98365905,684.53,683.76,0.97586027]
[1752585425245,0.98365905,684.52,683.76,0.97586027]
[1752585425445,0.98365905,684.52,682.83,3.2443672]
[1752585425446,0.98365905,684.52,683.75,0.97586027]
[1752585425644,0.98365905,684.46,683.69,0.97586027]
[1752585425849,0.98365905,684.41,683.64,0.97586027]